Cogmind - Beta 13 @@@ ROGUE MODE // 2024.05.08 @ 12:08:11 Player: e.v.o Result: Self-destructed Performance ------------- Evolutions (1) 500 Regions Visited (2) 400 Robots Destroyed (28) 140 Value Destroyed (554) 554 Prototype IDs (3) 60 Alien Tech Used (0) 0 Bonus (0) 0 TOTAL SCORE: 1654 Bonus ------- None Cogmind --------- Core Integrity 352/400 Matter 205/300 Energy 100/100 System Corruption 0% Temperature Cool (0) Movement Flying (117) Ox1 Location -9/Materials Parts ------- > --- POWER (1) -------- (None) > --- PROPULSION (3) --- Flight Unit Flight Unit > --- UTILITY (3) ------ Structural Scanner Melee Analysis Suite Hardened Light Armor Plating > --- WEAPON (2) ------- Light Assault Rifle Katana > --- INVENTORY (5) ---- Hover Unit Hover Unit Light Assault Rifle Flail Peak State ------------ > --- POWER ------------ Light Ion Engine > --- PROPULSION ------- Aluminum Leg Aluminum Leg Aluminum Leg > --- UTILITY ---------- Structural Scanner Seismic Detector Hardened Light Armor Plating > --- WEAPON ----------- Improved EM Shotgun Katana > --- INVENTORY -------- Hover Unit Hover Unit Melee Analysis Suite Light Assault Rifle Flail [Rating: 14] Favorites ----------- Power Light Ion Engine Engine Light Ion Engine Propulsion Aluminum Leg Leg Aluminum Leg Flight Unit Flight Unit Utility Structural Scanner Device Structural Scanner Storage Small Storage Unit Processor Melee Analysis Suite Protection Hardened Light Armor Plating Weapon Light Cannon Energy Gun EM Pulse Gun Ballistic Gun Assault Rifle Ballistic Cannon Light Cannon Slashing Weapon Katana Build | -11 -10 -9 ------- Run | Yrd Mat Mat Slots Evolved 2 | . . 2 Power . | . . . Propulsion 1 | . . 1 Utility 1 | . . 1 Weapon . | . . . Parts Attached 39 | 7 8 24 Power 4 | 1 2 1 Engine 4 | 1 2 1 Core . | . . . Reactor . | . . . Propulsion 14 | 2 1 11 Treads . | . . . Leg 10 | 2 1 7 Wheel . | . . . Hover . | . . . Flight 4 | . . 4 Utility 7 | 1 3 3 Device 3 | . 2 1 Storage 2 | 1 1 . Processor 1 | . . 1 Hackware . | . . . Protection 1 | . . 1 Artifact . | . . . Weapon 14 | 3 2 9 Energy Gun 7 | 1 . 6 Energy Cannon . | . . . Ballistic Gun 5 | 2 1 2 Ballistic Cannon 1 | . 1 . Launcher . | . . . Special Weapon . | . . . Impact Weapon . | . . . Slashing Weapon 1 | . . 1 Piercing Weapon . | . . . Special Melee Weapon . | . . . Unidentified Prototypes 1 | . . 1 Parts Lost 4 | . 1 3 Power 1 | . . 1 Propulsion 1 | . . 1 Utility . | . . . Weapon 2 | . 1 1 Highest Loss Streak 2 | . 1 2 To Critical Strikes . | . . . Average Slot Usage (%) 99 | . 99 99 Engine 12 | . 14 11 Leg 27 | . 28 26 Flight 3 | . . 5 Device 18 | . 15 20 Storage 5 | . 12 . Processor 1 | . . 2 Protection 5 | . . 9 Energy Gun 7 | . 7 7 Ballistic Gun 7 | . 9 5 Ballistic Cannon 5 | . 11 . Slashing Weapon 4 | . . 7 Naked Turns . | . . . Heaviest Build 16 | 11 16 15 Greatest Support 30 | 20 20 30 Greatest Overweight (x) 3 | 3 . . Average Overweight (x) . | . . . Largest Inventory Capacity 8 | 8 8 5 Average Capacity 6 | 7 7 5 Most Carried 6 | 2 6 5 Average Carried 3 | 1 3 4 Final Capacity 8 | 8 5 5 Final Carried 4 | 2 4 4 Class Distribution -------------------- 66% | Mutant 33% | Scavenger-Mutant Dominant Class ---------------- Mutant | -10/Materials Scavenger-Mutant | -9/Materials Resources | -11 -10 -9 ----------- Run | Yrd Mat Mat Matter Collected 717 | 264 294 159 Remotely . | . . . Salvage Created 864 | . 515 349 Parts 45 | . 22 23 Haulers Intercepted 1 | . . 1 Recyclers Shooed 4 | . 1 3 Parts Field Recycled . | . . . Retrieved Matter . | . . . Parts Self-Destructed . | . . . Prevented . | . . . Kills | -11 -10 -9 ------- Run | Yrd Mat Mat Combat Hostiles Destroyed 20 | . 11 9 Melee 5 | . . 5 Guns 8 | . 5 3 Cannons 6 | . 6 . AOE 1 | . . 1 Classes Destroyed 9 | . 6 3 Worker 1 | . 1 . Hauler 1 | . . 1 Recycler 3 | . 3 . Operator 1 | . 1 . Watcher 2 | . 1 1 Swarmer 10 | . 6 4 Grunt 7 | . 5 2 Duelist 1 | . . 1 Sentry 2 | . . 2 Best Kill Streak 7 | . 7 5 Combat Bots Only 4 | . 4 4 Max Kills in Single Turn 1 | . 1 1 Gunslinging . | . . . Exploded 1 | . . 1 Melee 1 | . . 1 Uniques/NPCs Destroyed . | . . . Combat | -11 -10 -9 -------- Run | Yrd Mat Mat Hostile Shots Fired 124 | . 57 67 Missed 35 | . 15 20 Damage Taken 947 | . 378 569 Core 107 | . 59 48 Absorbed by Shields . | . . . Core Remaining (%) 88 | 100 76 . Volleys Fired 69 | . 46 23 Largest 2 | . 2 2 Hottest 75 | . 75 65 Shots Fired 121 | . 91 30 Gun 84 | . 54 30 Cannon 37 | . 37 . Launcher . | . . . Special . | . . . Kinetic 80 | . 67 13 Thermal 13 | . . 13 Explosive . | . . . Electromagnetic 28 | . 24 4 Robot Hit Streak 8 | . 7 8 Robot Miss Streak 6 | . 4 6 Penetration Max . | . . . Secondary Targets . | . . . Shots Hit Robots 81 | . 48 33 Core Hits 35 | . 21 14 Critical Kills . | . . . Critical Parts Destroyed . | . . . Critical Strikes 3 | . 1 2 Burn 1 | . . 1 Blast 1 | . 1 . Sever 1 | . . 1 Melee Attacks 26 | . . 26 Impact . | . . . Slashing 26 | . . 26 Piercing . | . . . Sneak Attacks 1 | . . 1 Combat Hostiles . | . . . Follow-up Attacks . | . . . Damage Inflicted 1616 | . 761 855 Guns 590 | . 370 220 Cannons 333 | . 333 . Explosions 113 | . 46 67 Melee 568 | . . 568 Ramming 12 | . 12 . Kinetic 613 | . 503 110 Thermal 185 | . 46 139 Explosive . | . . . Electromagnetic 238 | . 200 38 Impact . | . . . Slashing 568 | . . 568 Piercing . | . . . Highest Corruption . | . . . Average Corruption . | . . . Corruption Purged . | . . . Corruption Blocked . | . . . Overload Shots . | . . . Overflow Damage 15 | . 12 3 Projectiles 12 | . 12 . Explosions . | . . . Melee 3 | . . 3 Knockbacks 6 | . 6 . Impact . | . . . Kinetic 5 | . 5 . Secondary 1 | . 1 . Self-Inflicted Damage 42 | . . 42 Shots 1 | . . 1 Rammed . | . . . Targets Rammed 2 | . 2 . Kicked 2 | . 2 . Crushed . | . . . Highest Temperature 412 | . 132 412 Average Temperature 77 | . 44 119 Received Heat Transfer 237 | . 114 123 Effects 3 | . . 3 Interference 3 | . . 3 Siege Activations . | . . . Robots Corrupted . | . . . Combat Hostiles . | . . . Parts Fried . | . . . Impact Corruptions . | . . . Robots Melted . | . . . Combat Hostiles . | . . . Parts Melted 1 | . . 1 Heat Transferred 410 | . 50 360 Parts Sabotaged . | . . . Parts Stolen . | . . . Parts Stripped . | . . . Power Chain Reactions 2 | . 1 1 Alert | -11 -10 -9 ------- Run | Yrd Mat Mat Peak Influence 331 | . 271 331 Initial 29 | . . 29 Average 119 | . 106 144 Maximum Alert Level 1 | . 1 1 Low Security (%) 74 | 100 74 72 Level 1 25 | . 25 27 Level 2 . | . . . Level 3 . | . . . Level 4 . | . . . Level 5 . | . . . High Security . | . . . Max Security . | . . . Squads Dispatched 4 | . 3 1 Investigation 1 | . 1 . Extermination . | . . . Reinforcement 3 | . 2 1 Assault . | . . . Garrison . | . . . Intercept . | . . . Searches Triggered . | . . . Construction Impeded . | . . . Haulers Reinforced . | . . . Active Scanning Responses . | . . . Cargo Convoy Interrupts . | . . . Stealth | -11 -10 -9 --------- Run | Yrd Mat Mat Distress Signals 3 | . 2 1 Communications Jammed . | . . . Distress Signals . | . . . Times Spotted 48 | . 17 31 Peak Tracking Total 11 | . 5 11 Tactical Retreats 4 | . . 4 Traps | -11 -10 -9 ------- Run | Yrd Mat Mat Traps Triggered 1 | . 1 . Indirectly . | . . . Trap Hack Attempts . | . . . Triggered . | . . . Disarmed . | . . . Reprogrammed . | . . . Reused . | . . . Traps Extracted . | . . . Installed . | . . . Triggered . | . . . Machines | -11 -10 -9 ---------- Run | Yrd Mat Mat Machines Disabled 1 | . 1 . Max in Single Turn 1 | . 1 . Machines Repaired . | . . . Machines Dismantled . | . . . Machines Sabotaged . | . . . Overloaded Fab Kills . | . . . Hacking | -11 -10 -9 --------- Run | Yrd Mat Mat Machines Accessed 3 | . 2 1 Terminals 3 | . 2 1 Fabricators . | . . . Repair Stations . | . . . Recycling Units . | . . . Scanalyzers . | . . . Garrison Access . | . . . Total Hacks 12 | . 10 2 Successful 6 | . 5 1 Failed 6 | . 5 1 Catastrophic 1 | . . 1 Database Lockouts . | . . . Manual . | . . . Terminals 12 | . 10 2 Fabricators . | . . . Repair Stations . | . . . Recycling Units . | . . . Scanalyzers . | . . . Garrison Access . | . . . Terminal Hacks 6 | . 5 1 Prototype ID Bank 1 | . . 1 Unreport Threat 1 | . 1 . Locate Traps 1 | . 1 . Recall Investigation 1 | . 1 . Hauler Manifests 1 | . 1 . Zone Layout 1 | . 1 . Fabricator Hacks . | . . . Repair Station Hacks . | . . . Recycling Unit Hacks . | . . . Scanalyzer . | . . . Garrison Access Hacks . | . . . Unauthorized Hacks . | . . . Terminals . | . . . Fabricators . | . . . Repair Stations . | . . . Recycling Units . | . . . Scanalyzers . | . . . Garrison Access . | . . . Data Cores Recovered . | . . . Used . | . . . Hacking Detections 3 | . 2 1 Full Trace Events . | . . . Feedback Events . | . . . Feedback Blocked . | . . . Robot Schematics Acquired . | . . . Robots Built . | . . . Authchips . | . . . Time . | . . . Total Robot Build Rating . | . . . Part Schematics Acquired . | . . . Parts Built . | . . . Authchips . | . . . Time . | . . . Total Part Build Rating . | . . . Parts Repaired . | . . . Time . | . . . Parts Recycled . | . . . Recycled Matter . | . . . Retrieved Matter . | . . . Retrieved Components . | . . . Parts Scanalyzed . | . . . Part Schematics Acquired . | . . . Parts Damaged . | . . . Bothacking | -11 -10 -9 ------------ Run | Yrd Mat Mat Used RIF Installer . | . . . Robots Hacked . | . . . Non-combat . | . . . Combat . | . . . Robot Hacks Applied . | . . . Relay Couplers Released . | . . . Fabnet Peak Effective % . | . . . Robots Rewired . | . . . Allies Hacked . | . . . Hacks Repelled . | . . . Allies | -11 -10 -9 -------- Run | Yrd Mat Mat Total Allies . | . . . Largest Group . | . . . Highest-Rated Group . | . . . Highest-Rated Ally . | . . . Total Orders . | . . . Ally Attacks . | . . . Total Damage . | . . . Kills . | . . . Allies Corrupted . | . . . Allies Melted . | . . . Intel | -11 -10 -9 ------- Run | Yrd Mat Mat Robot Analysis Total . | . . . Derelict Logs Recovered . | . . . Drone Launches . | . . . Drone Recoveries . | . . . Exploration | -11 -10 -9 ------------- Run | Yrd Mat Mat Turns Passed 1037 | 59 452 526 Spaces Moved 677 | 40 244 393 Core 9 | 9 . . Treads . | . . . Legs 519 | 31 244 244 Wheels . | . . . Hover . | . . . Flight 149 | . . 149 Fastest Speed 34 | 50 120 34 Average Speed 101 | 119 120 87 Slowest Speed 200 | 200 120 120 Overloaded Moves . | . . . Propulsion Burnouts . | . . . Robots Hopped 1 | . . 1 Cave-ins Triggered . | . . . Exploration Rate (%) 26 | 4 40 36 Regions Visited 2 Branch Regions . Pre-discovered Areas . | . . . Known Exits Taken . | . . . Unknown Exits Taken 2 | 1 1 . Scrap Searched . | . . . Spaces Dug 9 | . . 9 Terrain Destroyed 15 | . 6 9 Melee 9 | . . 9 Projectile . | . . . AOE 6 | . 6 . Terrain Rammed . | . . . Walls Destroyed . | . . . Machines Disabled . | . . . Actions | -11 -10 -9 --------- Run | Yrd Mat Mat Total 873 | 48 313 512 Wait 12 | . 4 8 Move 673 | 39 243 391 Hop 1 | . . 1 Pick Up 23 | 2 4 17 Fast Attach 12 | 6 3 3 Attach 7 | . 1 6 Detach . | . . . Swap 20 | 1 4 15 Drop 28 | . 6 22 Fire 69 | . 46 23 Melee 26 | . . 26 Ram . | . . . Kick 2 | . 2 . Crush . | . . . Escape Stasis . | . . . Rewire . | . . . Trap . | . . . Miscellaneous . | . . . Route ------- -11/Scrapyard -10/Materials -9/Materials History --------- Turn | Location | Event 4 | -11/Scrapyard | Discovered new exit (range 16) 60 | -11/Scrapyard | Entered Materials 307 | -10/Materials | Build established: Mutant 497 | -10/Materials | Discovered new exit (range 14) 512 | -10/Materials | Entered another Materials area 512 | -9/Materials | Evolved 2 slots: Propulsion x1, Utility x1 1038 | -9/Materials | Self-destructed Last Messages --------------- Rifle. 00947_ Dropped Aluminum Leg. 00948_ Acquired Hover Unit. 00950_ R-06 Scavenger collects Seismic Detector. 00950_ Acquired Hover Unit. 00954_ R-06 Scavenger collects Aluminum Leg. 00991_ O-16 Technician: "IFF HANDSHAKE FAILED. SECURING TERMINAL." 01000_ O-16 Technician uses terminal to summon reinforcements. 01000_ ALERT: Hostiles spotted, dispatching reinforcements to Terminal M003. 01000_ O-16 Technician locks terminal. 01000_ Destroyed Lgt. Ion Engine. 01031_ Lgt. Ion Engine destroyed. 01035_ Flight Unit destroyed. 01038_ C-30 ARC bursts open, deploying its payload. 01038_ S-10 Pest unfolds itself. 01038_ S-10 Pest destroyed. Map ----- +----------------------------------------------------+ | ???????????????????????????????????????????????? | | ???????????????????????????????????????????????? | | ???????????????????????????????????????????????? | | ???????????????????????????????????????????????? | | ???????????????????????????????????????????????? | | ???????????????????????????????????????????????? | | ???????????????????????????????????????????????? | | ???????????????????????????????????????????????? | | ???????????????????????????????????????????????? | | ???????????????????????????????????????????????? | | ???????????????????????????????????????????????? | | ???????????????????????????????????????????????? | | ?????????? #####???????????????????????????????? | | ????????? #######?????????????????????????????? | | ????????? #"T"###?????????????????????????????? | | ?????????? ?????????????????? | | ?????????? ?############?????????????????? | | ??? # ? ?## ##?????????????????? | | ???##### """ ### ##?????????????????? | | ??? """ g ### ##?????????????????? | | ??? """ g # ##?????????????????? | | ?? s%s ##?????????????????? | | ?? #so ###### ??? ##??????? | | ?? *u # [ s###### ##??????? | | ????????########## ; ss s ?? ##??????? | | ????????### + # @ ##?????????????????? | | ?????????## """ #t;############???????????????? | | ?????????## """ # #"###########???????????????? | | ?????????## """ # ## """"" ##???????????????? | | ?????????## # ## """"" ##???????????????? | | ????????## # ## """"" ##???????????????? | | ????????######### ## ##???????????????? | | ????????? ###### ## ############?????? | | ????????????????## ## ############?????? | | ????????????????## ## # "T" ##?????? | | ?????????????????? ## # ##?????? | | ?????????????????? ##+####+#### """ """ ##?????? | | ?????????????????? # # """ """ ##?????? | | ?????????????????? # + """ """ ##?????? | | # ???????????# # # ##?????? | | #####+???????????#+# ###### # ##?????? | | ## ???## ????? # ###### # ##?????? | | ## ???## ?????? # ##??## ############?????? | | ## ##### ????? # ##??##+############?????? | | ## ##### ??? # # ?? ???????????????? | | ## + ? # + ??????????????????????? | | ## ### # # ??????????????????????? | | ## ### !! + + ??????????????????????? | | ## ### !! # # ??????????????????????? | | ## ### # # ?????????????????????? | +----------------------------------------------------+ Best States ------------- Heat Dissipation 28 Energy Generation 10 Energy Capacity 250 Matter Stores 300 Matter Capacity 300 Sight Range 16 Robot Scan Range 14 Terrain Scan Density 10 Armor Coverage 150 Evasion (%) 63 Melee Accuracy 5 Item Schematics ----------------- None Robot Schematics ------------------ None Fabricated ------------ Nothing Alien Tech Used ----------------- None Achievements -------------- None Challenges ------------ None Game ------ Seed GatlingNavigationShielding Manual? 0 Play Time 00:14:00 Cumulative 71.6 hours Start 2024.05.08 @ 11:57:24 End 2024.05.08 @ 12:08:11 Sessions 1 Manual Loads 0 Difficulty Rogue Special Mode None Game No. 118 Rogue 93 Adventurer 25 Explorer 0 Win Type - Total 0 Types 0/0/0/0/0/0/0/0/0 Lore% 23 Gallery% 42 Achievement% 30 Wizard Run 0 Options --------- Layout 1 ASCII 0 Keyboard 0 Movement Mouse Keybinds 0 Fullscreen 2 Font 24/Smallcaps Map View 50x35 Zoom Use 0% Tactical HUD 1 Map Filters NONE Filters NONE Steam 1 RUN: 95072a2f-81d9-4466-b880-a1da5e232e84